Cogmind - Beta 15 @@@ ROGUE MODE // 2025.08.01 @ 00:43:05 Player: Cheshire Result: Destroyed by S-10 Pest with Light Assault Rifle Performance ------------- Evolutions (0) 0 Regions Visited (3) 600 Robots Destroyed (6) 30 Value Destroyed (181) 181 Prototype IDs (2) 40 Alien Tech Used (0) 0 Bonus (0) 0 TOTAL SCORE: 851 Bonus ------- None Cogmind --------- Core Integrity 0/250 Matter 274/300 Energy 240/240 System Corruption 0% Temperature Cool (2) Movement Core (450) Ox8 Location -10/Subcaves Parts ------- > --- POWER (1) -------- Nuclear Core > --- PROPULSION (2) --- (None) > --- UTILITY (2) ------ Small Storage Unit Targeting Computer > --- WEAPON (2) ------- Subdweller Beam Cannon Assault Cannon > --- INVENTORY (8) ---- Aluminum Leg Aluminum Leg Trap Scanner Hardened Medium Armor Plating Reactive Plating Hacking Suite Mining Laser Peak State ------------ > --- POWER ------------ Nuclear Core > --- PROPULSION ------- Aluminum Leg Aluminum Leg > --- UTILITY ---------- Small Storage Unit Targeting Computer > --- WEAPON ----------- Small Laser Assault Cannon > --- INVENTORY -------- Aluminum Leg Aluminum Leg Trap Scanner Hardened Medium Armor Plating Reactive Plating Hacking Suite Mining Laser [Rating: 12] Favorites ----------- Power Ion Engine Engine Ion Engine Power Core Nuclear Core Propulsion Aluminum Leg Leg Aluminum Leg Utility Small Storage Unit Storage Small Storage Unit Processor Targeting Computer Weapon Small Laser Energy Gun Small Laser Energy Cannon Subdweller Beam Cannon Ballistic Gun Light Assault Rifle Ballistic Cannon Assault Cannon Build | -11 -10 -10 -10 ------- Run | Yrd Mat Min Sub Slots Evolved . | . . . . Power . | . . . . Propulsion . | . . . . Utility . | . . . . Weapon . | . . . . Parts Attached 12 | 6 2 1 3 Power 2 | 1 . 1 . Engine 1 | 1 . . . Core 1 | . . 1 . Reactor . | . . . . Propulsion 2 | 2 . . . Treads . | . . . . Leg 2 | 2 . . . Wheel . | . . . . Hover . | . . . . Flight . | . . . . Utility 2 | 1 1 . . Device . | . . . . Storage 1 | 1 . . . Processor 1 | . 1 . . Hackware . | . . . . Protection . | . . . . Artifact . | . . . . Weapon 6 | 2 1 . 3 Energy Gun 1 | 1 . . . Energy Cannon 1 | . . . 1 Ballistic Gun 3 | 1 1 . 1 Ballistic Cannon 1 | . . . 1 Launcher . | . . . . Special Weapon . | . . . . Impact Weapon . | . . . . Slashing Weapon . | . . . . Piercing Weapon . | . . . . Special Melee Weapon . | . . . . Unidentified Prototypes . | . . . . Parts Lost 4 | . . . 4 Power . | . . . . Propulsion 2 | . . . 2 Utility . | . . . . Weapon 2 | . . . 2 Highest Loss Streak 3 | . . . 3 To Critical Strikes . | . . . . Average Backups 7 | 3 6 7 7 Power . | 1 1 . . Propulsion 1 | 1 1 2 2 Utility 2 | . . 2 4 Weapon 2 | 1 2 2 1 Tool/Special . | . . . . Unused Backups 15 | . 3 5 7 Power 2 | . . 2 . Propulsion 5 | . 3 . 2 Utility 5 | . . 1 4 Weapon 3 | . . 2 1 Tool/Special . | . . . . Average Slot Usage (%) 97 | . 98 100 94 Engine 6 | . 14 6 . Core 7 | . . 7 14 Leg 26 | . 28 28 24 Storage 14 | . 14 14 14 Processor 13 | . 12 14 14 Energy Gun 12 | . 14 14 10 Ballistic Gun 12 | . 14 14 9 Ballistic Cannon 1 | . . . 4 Peak Build Rating 12 | 6 7 10 12 Average Rating 8 | 4 6 8 10 On Entrance 5 | . 6 7 10 Naked Turns . | . . . . Heaviest Build 25 | 12 12 14 25 Greatest Support 20 | 20 20 20 20 Greatest Overweight (x) 2 | . . . 2 Average Overweight (x) . | . . . . Largest Inventory Capacity 8 | 8 8 8 8 Average Capacity 7 | 6 8 8 8 Most Carried 8 | 5 8 8 8 Average Carried 7 | 3 6 7 7 Final Capacity 8 | 8 8 8 8 Final Carried 8 | 4 8 8 7 Class Distribution -------------------- 100% | Mutant Dominant Class ---------------- Mutant | -10/Materials Mutant | -10/Mines Mutant | -10/Subcaves Resources | -11 -10 -10 -10 ----------- Run | Yrd Mat Min Sub Matter Collected 363 | 195 84 21 63 Remotely . | . . . . Salvage Created 160 | . 100 . 60 Parts 12 | . 6 . 6 Haulers Intercepted . | . . . . Recyclers Shooed . | . . . . Parts Field Recycled . | . . . . Retrieved Matter . | . . . . Parts Self-Destructed 5 | . . . 5 Prevented . | . . . . Kills | -11 -10 -10 -10 ------- Run | Yrd Mat Min Sub Combat Hostiles Destroyed 6 | . 2 . 4 Guns 4 | . 2 . 2 Cannons 2 | . . . 2 Classes Destroyed 3 | . 1 . 2 Swarmer 2 | . . . 2 Grunt 2 | . 2 . . Subdweller 2 | . . . 2 Best Kill Streak 2 | . 2 . 2 Combat Bots Only 2 | . 2 . 2 Max Kills in Single Turn 1 | . 1 . 1 Gunslinging . | . . . . Exploded . | . . . . Melee . | . . . . Uniques/NPCs Destroyed . | . . . . Combat | -11 -10 -10 -10 -------- Run | Yrd Mat Min Sub Hostile Shots Fired 78 | . 12 . 66 Missed 21 | . 2 . 19 Hits 57 | . 10 . 47 Projectile 57 | . 10 . 47 Damage Taken 867 | . 139 . 728 Core 256 | . 26 . 230 Absorbed by Shields . | . . . . Core Remaining (%) 100 | 100 . . . Volleys Fired 31 | . 9 1 21 Largest 2 | . 2 2 2 Hottest 117 | . 60 60 117 Shots Fired 55 | . 18 2 35 Gun 41 | . 18 2 21 Cannon 14 | . . . 14 Launcher . | . . . . Special . | . . . . Kinetic 31 | . 9 1 21 Thermal 24 | . 9 1 14 Explosive . | . . . . Electromagnetic . | . . . . Robot Hit Streak 12 | . 5 . 12 Robot Miss Streak 2 | . 2 . 1 Penetration Max . | . . . . Secondary Targets . | . . . . Shots Hit Robots 41 | . 13 . 28 Core Hits 12 | . 5 . 7 Critical Kills . | . . . . Critical Parts Destroyed . | . . . . Critical Strikes . | . . . . Melee Attacks . | . . . . Impact . | . . . . Slashing . | . . . . Piercing . | . . . . Sneak Attacks . | . . . . Combat Hostiles . | . . . . Follow-up Attacks . | . . . . Damage Inflicted 652 | . 128 . 524 Guns 368 | . 128 . 240 Cannons 284 | . . . 284 Explosions . | . . . . Melee . | . . . . Ramming . | . . . . Kinetic 429 | . 49 . 380 Thermal 223 | . 79 . 144 Explosive . | . . . . Electromagnetic . | . . . . Impact . | . . . . Slashing . | . . . . Piercing . | . . . . Highest Corruption . | . . . . Average Corruption . | . . . . Corruption Purged . | . . . . Corruption Blocked . | . . . . Overload Shots . | . . . . Overflow Damage . | . . . . Projectiles . | . . . . Explosions . | . . . . Melee . | . . . . Knockbacks 2 | . . . 2 Impact . | . . . . Kinetic 2 | . . . 2 Secondary . | . . . . Self-Inflicted Damage . | . . . . Shots . | . . . . Rammed . | . . . . Targets Rammed . | . . . . Kicked . | . . . . Crushed . | . . . . Highest Temperature 132 | . 132 20 2 Average Temperature 70 | . 79 15 1 Received Heat Transfer 258 | . 78 . 180 Siege Activations . | . . . . Martial Activations . | . . . . Shielding Activations . | . . . . Robots Disrupted . | . . . . Combat Hostiles . | . . . . Robots Corrupted . | . . . . Combat Hostiles . | . . . . Parts Fried . | . . . . Impact Corruptions . | . . . . Robots Melted . | . . . . Combat Hostiles . | . . . . Parts Melted 1 | . . . 1 Heat Transferred 487 | . 175 . 312 Parts Sabotaged . | . . . . Parts Stolen . | . . . . Parts Stripped . | . . . . Power Chain Reactions . | . . . . Alert | -11 -10 -10 -10 ------- Run | Yrd Mat Min Sub Maximum Alert Level . | . . . . Low Security (%) 100 | 100 100 100 . Level 1 . | . . . . Level 2 . | . . . . Level 3 . | . . . . Level 4 . | . . . . Level 5 . | . . . . High Security . | . . . . Max Security . | . . . . Peak Influence 40 | . 40 . . Initial . | . . . . Average 3 | . 6 . . Influence Increases 171 | . 61 . 110 Destroy 0b10 Robot/C 80 | . 40 . 40 Destroy Leader 20 | . 10 . 10 Successful Hack 11 | . 11 . . Lose Combat Pursuer 60 | . . . 60 Influence Decreases 161 | . 60 1 100 Entered New Map 1 | . . 1 . Time Decay 150 | . 60 . 90 Lost Part 10 | . . . 10 Squads Dispatched 3 | . 2 1 . Investigation 2 | . 1 1 . Extermination . | . . . . Reinforcement 1 | . 1 . . Assault . | . . . . Garrison . | . . . . Intercept . | . . . . Searches Triggered . | . . . . Construction Impeded . | . . . . Haulers Reinforced . | . . . . Active Scanning Responses . | . . . . Cargo Convoy Interrupts . | . . . . Stealth | -11 -10 -10 -10 --------- Run | Yrd Mat Min Sub Distress Signals . | . . . . Communications Jammed . | . . . . Distress Signals . | . . . . Times Spotted 19 | . 5 . 14 Peak Tracking Total 6 | . 2 . 6 Tactical Retreats 2 | . . . 2 Traps | -11 -10 -10 -10 ------- Run | Yrd Mat Min Sub Traps Triggered . | . . . . Indirectly . | . . . . Trap Hack Attempts . | . . . . Triggered . | . . . . Disarmed . | . . . . Reprogrammed . | . . . . Reused . | . . . . Traps Extracted . | . . . . Installed . | . . . . Triggered . | . . . . Machines | -11 -10 -10 -10 ---------- Run | Yrd Mat Min Sub Machines Disabled . | . . . . Max in Single Turn . | . . . . Machines Repaired . | . . . . Machines Dismantled . | . . . . Machines Sabotaged . | . . . . Overloaded Fab Kills . | . . . . Hacking | -11 -10 -10 -10 --------- Run | Yrd Mat Min Sub Machines Accessed 3 | . 2 1 . Terminals 2 | . 2 . . Fabricators . | . . . . Repair Stations . | . . . . Recycling Units . | . . . . Scanalyzers . | . . . . Garrison Access . | . . . . Total Hacks 5 | . 4 1 . Successful 5 | . 4 1 . Failed . | . . . . Catastrophic . | . . . . Database Lockouts . | . . . . Manual . | . . . . Terminals 4 | . 4 . . Fabricators . | . . . . Repair Stations . | . . . . Recycling Units . | . . . . Scanalyzers . | . . . . Garrison Access . | . . . . Terminal Hacks 5 | . 4 1 . Prototype ID Bank 1 | . 1 . . Open Door 1 | . . 1 . Terminal Index 1 | . 1 . . Locate Traps 1 | . 1 . . Security Status 1 | . 1 . . Fabricator Hacks . | . . . . Repair Station Hacks . | . . . . Recycling Unit Hacks . | . . . . Scanalyzer . | . . . . Garrison Access Hacks . | . . . . Unauthorized Hacks . | . . . . Terminals . | . . . . Fabricators . | . . . . Repair Stations . | . . . . Recycling Units . | . . . . Scanalyzers . | . . . . Garrison Access . | . . . . Data Cores Recovered . | . . . . Used . | . . . . Hacking Detections 1 | . 1 . . Full Trace Events 1 | . 1 . . Feedback Events . | . . . . Feedback Blocked . | . . . . Robot Schematics Acquired . | . . . . Robots Built . | . . . . Authchips . | . . . . Time . | . . . . Total Robot Build Rating . | . . . . Part Schematics Acquired . | . . . . Parts Built . | . . . . Authchips . | . . . . Time . | . . . . Total Part Build Rating . | . . . . Parts Repaired . | . . . . Time . | . . . . Parts Recycled . | . . . . Recycled Matter . | . . . . Retrieved Matter . | . . . . Retrieved Components . | . . . . Parts Scanalyzed . | . . . . Part Schematics Acquired . | . . . . Parts Damaged . | . . . . Bothacking | -11 -10 -10 -10 ------------ Run | Yrd Mat Min Sub Used RIF Installer . | . . . . Robots Hacked . | . . . . Non-combat . | . . . . Combat . | . . . . Robot Hacks Applied . | . . . . Relay Couplers Released . | . . . . Fabnet Peak Effective % . | . . . . Robots Rewired . | . . . . Allies Hacked . | . . . . Hacks Repelled . | . . . . Allies | -11 -10 -10 -10 -------- Run | Yrd Mat Min Sub Total Allies . | . . . . Largest Group . | . . . . Highest-Rated Group . | . . . . Highest-Rated Ally . | . . . . Total Orders . | . . . . Ally Attacks . | . . . . Total Damage . | . . . . Kills . | . . . . Allies Corrupted . | . . . . Allies Melted . | . . . . Intel | -11 -10 -10 -10 ------- Run | Yrd Mat Min Sub Active Infowar (turns) . | . . . . Robot Analysis Total . | . . . . Derelict Logs Recovered . | . . . . Drone Launches . | . . . . Drone Recoveries . | . . . . Exploration | -11 -10 -10 -10 ------------- Run | Yrd Mat Min Sub Turns Passed 904 | 74 288 238 304 Spaces Moved 579 | 54 171 178 176 Core 9 | 9 . . . Treads . | . . . . Legs 570 | 45 171 178 176 Wheels . | . . . . Hover . | . . . . Flight . | . . . . Fastest Speed 50 | 50 120 120 120 Average Speed 123 | 108 120 120 136 Slowest Speed 260 | 120 120 120 260 Overloaded Moves . | . . . . Propulsion Burnouts . | . . . . Robots Hopped . | . . . . Potential Cave-ins . | . . . . Cave-ins Triggered . | . . . . Exploration Rate (%) 12 | 4 21 17 8 Regions Visited 3 Branch Regions 2 Pre-discovered Areas . | . . . . Known Exits Taken . | . . . . Unknown Exits Taken 3 | 1 1 1 . Scrap Searched 1 | . . 1 . Spaces Dug . | . . . . Terrain Destroyed . | . . . . Melee . | . . . . Projectile . | . . . . AOE . | . . . . Terrain Rammed . | . . . . Walls Destroyed . | . . . . Machines Disabled . | . . . . Actions | -11 -10 -10 -10 --------- Run | Yrd Mat Min Sub Total 719 | 69 239 204 207 Wait 60 | . 45 13 2 Move 576 | 53 170 177 176 Hop . | . . . . Pick Up 28 | 10 9 6 3 Fast Attach . | . . . . Attach 11 | 6 1 1 3 Detach . | . . . . Swap 1 | . 1 . . Drop 12 | . 4 6 2 Fire 31 | . 9 1 21 Melee . | . . . . Ram . | . . . . Kick . | . . . . Crush . | . . . . Escape Stasis . | . . . . Rewire . | . . . . Trap . | . . . . Miscellaneous . | . . . . Route ------- -11/Scrapyard -10/Materials -10/Mines -10/Subcaves History --------- Turn | Location | Event 10 | -11/Scrapyard | Discovered new exit (range 15) 75 | -11/Scrapyard | Entered Materials 304 | -10/Materials | Build established: Mutant 348 | -10/Materials | Discovered new exit (range 14) 363 | -10/Materials | Entered Mines 453 | -10/Mines | Met a Derelict shopkeep closing up shop 591 | -10/Mines | Discovered new exit (range 8) 601 | -10/Mines | Entered Subcaves 602 | -10/Subcaves | Approached by a straggling Scientist 821 | -10/Subcaves | Core integrity fell below 50% 859 | -10/Subcaves | Lost 3 parts (1n2w) 898 | -10/Subcaves | Core integrity fell below 20% 905 | -10/Subcaves | Destroyed by S-10 Pest with Light Assault Rifle Last Messages --------------- Dropped Lgt. Assault Rifle. Dropped Mining Laser. Acquired Sub. Machine Gun. Subatomizers dissect the Sub. Monowheel. Acquired Mining Laser. Acquired 10 matter. Subatomizers dissect the Sub. Monowheel. Tech Extrapolator violently self-destructs. Sub. Machine Gun destroyed. Sub. Monowheel melted. KB-63E(R) destroyed. Aluminum Leg destroyed. 3C-L0O(R) knocked back. Sml. Laser destroyed. 3C-L0O(R) destroyed. Acquired Sub. Beam Cannon. Acquired 46 matter. Acquired 5 matter. Aluminum Leg destroyed. S-10 Pest knocked back. Map ----- +----------------------------------------------------+ | ?????????????????????????????????????????????????? | | ?????????????????????????????????????????????????? | | ?????????????????????????????????????????????????? | | ?????????????????????????????????????????????????? | | ?????????????????????????????????????????????????? | | ?????????????????????????????????????????????????? | | ?????????????????????????????????????????????????? | | ?????????????????????????????????????????????????? | | ?????????????????????????????????????????????????? | | ?????????????????????????????????????????????????? | | ?????????????????????????????????????????????????? | | ?????????????????????????????????????????????????? | | ?????????????????????????????????????????????????? | | ?????????????????????????????????????????????????? | | ????????????????????????##???????????????????????? | | ???????????????????????? ##?????????????????????? | | ???????????????????????? ##????????????????????? | | ????????????????????????# #???????"""??????????? | | ????????????????????????# #????? "??????????? | | ????????????????????????# ##### "??????????? | | ???????????????????????## % ""#?????????? | | ???????????????????????# ss ??????????? | | ???????????????????????# s ???????????????? | | ???????????????????????# s #????????????????????? | | ???????????????????????# ##???????????????????? | | ???????????????????????# @ #???????????????????? | | ???????????????????????# ##???????????????????? | | ???????????????????????## ##????????????????????? | | ????????????????????????# #?????????????????????? | | ???????????????????????## #?????????????????????? | | ??????????????????????## ##????????????????????? | | ??????????????????????# #????????????????????? | | ??????????????????????# ##?#?????????????????? | | ??????????????????????## # ##????????????????? | | ????????????????????#### "#????????????????? | | ??????????????????### "#????????????????? | | ?????????????????## %! # #" "#???????????????? | | #?????########???# #####"" #???????????????? | | ###??## ##??###" %& # " ##???????????????? | | ##?# #????# % "" #???????????????? | | #?# % ####????# # ### "" ??????????????? | | ###?# %##?###???# ##???????????????????????? | | ##### % #### ##### ##????????????????????????? | | ^ ## ### #????????????????????????? | | ## ## ###% ##????????????????????????? | | # ### ^ ## #?????????????????????????? | | ## #### ^ #?????????????????????????? | | ?##### ## #?????????????????????????? | | ???## ## ##????????????????????????? | | ??## ^ ### ### ###??????????????????????? | +----------------------------------------------------+ Best States ------------- Heat Dissipation 25 Energy Generation 14 Energy Capacity 250 Matter Stores 300 Matter Capacity 300 Sight Range 16 Terrain Scan Density 10 Evasion (%) 55 Targeting Accuracy 5 Item Schematics ----------------- None Robot Schematics ------------------ None Fabricated ------------ Nothing Repaired ---------- Nothing Alien Tech Used ----------------- None Achievements -------------- None Challenges ------------ None Game ------ Seed SingularityPlasmaInjector Manual? 0 Play Time 00:15:11 Cumulative 6.6 hours Start 2025.08.01 @ 00:28:38 End 2025.08.01 @ 00:43:05 Sessions 1 Manual Loads 0 Difficulty Rogue Special Mode None Game No. 15 Rogue 15 Adventurer 0 Explorer 0 Win Type - Total 0 Types 0/0/0/0/0/0/0/0/0/0 Lore% 6 Gallery% 9 Achievement% 8 Wizard Run 0 Options --------- Layout 1 ASCII 0 Keyboard 1 Movement Arrows Keybinds 0 Fullscreen 1 Font 24/Smallcaps Map View 50x35 Zoom Use 12% Tactical HUD 0 Map Filters NONE Filters NONE Steam 1 RUN: eecfb421-0c16-46f6-be95-f96920d12d1f